fUST/lending_fUST_20260608
["ID","MTS","AMOUNT","RATE_DAILY","PERIOD"]
[424419382,1780863038000,-1002.36,0.00019178,2]
[424419351,1780863038000,-500.0,0.00019178,2]
[424419386,1780863038000,-568.92,0.00019178,2]
[424419367,1780863038000,-500.0,0.00019178,2]
[424419356,1780863038000,-1018.48,0.00019178,2]
[424419333,1780863038000,-500.0,0.00019178,2]
[424419353,1780863038000,-500.0,0.00019178,2]
[424419384,1780863038000,-500.0,0.00019178,2]
[424419327,1780863038000,-552.28,0.00019178,2]
[424419326,1780863038000,-402.86483114,0.00019178,2]
[424419330,1780863038000,-500.0,0.00019178,2]
[424419331,1780863038000,-500.0,0.00019178,2]
[424419328,1780863038000,-500.0,0.00019178,2]
[424419329,1780863038000,-171.28286524,0.00019178,2]
[424419332,1780863038000,-500.0,0.00019178,2]
[424419334,1780863038000,-534.25,0.00019178,2]
[424419344,1780863038000,-874.73,0.00019178,2]
[424419335,1780863038000,-820.86,0.00019178,2]
[424419336,1780863038000,-500.0,0.00019178,2]
[424419343,1780863038000,-500.0,0.00019178,2]
[424419338,1780863038000,-514.3,0.00019178,2]
[424419337,1780863038000,-500.0,0.00019178,2]
[424419340,1780863038000,-606.08013701,0.00019178,2]
[424419339,1780863038000,-719.75,0.00019178,2]
[424419342,1780863038000,-500.0,0.00019178,2]
[424419341,1780863038000,-500.0,0.00019178,2]
[424419345,1780863038000,-500.0,0.00019178,2]
[424419346,1780863038000,-768.29,0.00019178,2]
[424419357,1780863038000,-875.91,0.00019178,2]
[424419358,1780863038000,-500.0,0.00019178,2]
[424419354,1780863038000,-500.0,0.00019178,2]
[424419349,1780863038000,-1343.42,0.00019178,2]
[424419350,1780863038000,-1120.0,0.00019178,2]
[424419347,1780863038000,-500.0,0.00019178,2]
[424419348,1780863038000,-500.0,0.00019178,2]
[424419383,1780863038000,-500.0,0.00019178,2]
[424419363,1780863038000,-500.0,0.00019178,2]
[424419389,1780863038000,-500.0,0.00019178,2]
[424419418,1780863038000,-500.0,0.00019178,2]
[424419428,1780863038000,-500.0,0.00019178,2]
[424419420,1780863038000,-234.15636903,0.00019178,2]
[424419422,1780863038000,-1654.99,0.00019178,2]
[424419429,1780863038000,-500.0,0.00019178,2]
[424419427,1780863038000,-1049.15,0.00019178,2]
[424419430,1780863038000,-580.75,0.00019178,2]
[424419424,1780863038000,-657.88,0.00019178,2]
[424419425,1780863038000,-500.0,0.00019178,2]
[424419426,1780863038000,-574.51,0.00019178,2]
[424419423,1780863038000,-500.0,0.00019178,2]
[424419421,1780863038000,-500.0,0.00019178,2]
[424419441,1780863038000,-1833.31,0.00019178,2]
[424419434,1780863038000,-500.0,0.00019178,2]
[424419443,1780863038000,-746.87,0.00019178,2]
[424419432,1780863038000,-500.0,0.00019178,2]
[424419431,1780863038000,-500.0,0.00019178,2]
[424419433,1780863038000,-2216.08,0.00019178,2]
[424419442,1780863038000,-500.0,0.00019178,2]
[424419437,1780863038000,-500.0,0.00019178,2]
[424419436,1780863038000,-1226.88,0.00019178,2]
[424419438,1780863038000,-500.0,0.00019178,2]
[424419435,1780863038000,-500.0,0.00019178,2]
[424419440,1780863038000,-521.4,0.00019178,2]
[424419444,1780863038000,-500.0,0.00019178,2]
[424419446,1780863038000,-747.34,0.00019178,2]
[424419387,1780863038000,-752.02,0.00019178,2]
[424419419,1780863038000,-500.0,0.00019178,2]
[424419417,1780863038000,-567.61,0.00019178,2]
[424419439,1780863038000,-500.0,0.00019178,2]
[424419411,1780863038000,-670.49,0.00019178,2]
[424419388,1780863038000,-500.0,0.00019178,2]
[424419413,1780863038000,-898.34,0.00019178,2]
[424419385,1780863038000,-500.0,0.00019178,2]
[424419391,1780863038000,-500.0,0.00019178,2]
[424419392,1780863038000,-500.0,0.00019178,2]
[424419393,1780863038000,-500.0,0.00019178,2]
[424419395,1780863038000,-500.0,0.00019178,2]
[424419397,1780863038000,-500.0,0.00019178,2]
[424419402,1780863038000,-260.29988345,0.00019178,2]
[424419394,1780863038000,-500.0,0.00019178,2]
[424419399,1780863038000,-645.75371082,0.00019178,2]
[424419396,1780863038000,-572.14,0.00019178,2]
[424419403,1780863038000,-532.11,0.00019178,2]
[424419404,1780863038000,-500.0,0.00019178,2]
[424419390,1780863038000,-300.0,0.00019178,2]
[424419401,1780863038000,-239.70011655,0.00019178,2]
[424419398,1780863038000,-804.1,0.00019178,2]
[424419409,1780863038000,-500.0,0.00019178,2]
[424419415,1780863038000,-500.0,0.00019178,2]
[424419412,1780863038000,-500.0,0.00019178,2]
[424419407,1780863038000,-1176.13,0.00019178,2]
[424419410,1780863038000,-516.47,0.00019178,2]
[424419416,1780863038000,-442.22752325,0.00019178,2]
[424419400,1780863038000,-1036.88,0.00019178,2]
[424419414,1780863038000,-624.49,0.00019178,2]
[424419406,1780863038000,-500.0,0.00019178,2]
[424419408,1780863038000,-500.0,0.00019178,2]
[424419405,1780863038000,-1894.73,0.00019178,2]
[424419445,1780863038000,-604.48,0.00019178,2]
[424419473,1780863039000,-636.77595435,0.00019178,2]
[424419470,1780863039000,-583.02,0.00019178,2]
[424419482,1780863039000,-1312.43,0.00019178,2]
[424419480,1780863039000,-500.0,0.00019178,2]
[424419476,1780863039000,-500.0,0.00019178,2]
[424419474,1780863039000,-618.94,0.00019178,2]
[424419478,1780863039000,-12671.33,0.00019178,2]
[424419485,1780863039000,-7611.48,0.00019178,2]
[424419487,1780863039000,-500.0,0.00019178,2]
[424419472,1780863039000,-992.57,0.00019178,2]
[424419496,1780863039000,-500.0,0.00019178,2]
[424419488,1780863039000,-2357.0,0.00019178,2]
[424419497,1780863039000,-500.0,0.00019178,2]
[424419499,1780863039000,-500.0,0.00019178,2]
[424419498,1780863039000,-3444.69,0.00019178,2]
[424419486,1780863039000,-500.0,0.00019178,2]
[424419493,1780863039000,-1174.61,0.00019178,2]
[424419494,1780863039000,-500.0,0.00019178,2]
[424419492,1780863039000,-500.0,0.00019178,2]
[424419483,1780863039000,-797.53,0.00019178,2]
[424419490,1780863039000,-500.0,0.00019178,2]
[424419489,1780863039000,-1000.0,0.00019178,2]
[424419481,1780863039000,-500.0,0.00019178,2]
[424419458,1780863039000,-660.66,0.00019178,2]
[424419469,1780863039000,-500.0,0.00019178,2]
[424419491,1780863039000,-500.0,0.00019178,2]
[424419447,1780863039000,-500.0,0.00019178,2]
[424419450,1780863039000,-371.55053622,0.00019178,2]
[424419449,1780863039000,-500.0,0.00019178,2]
[424419454,1780863039000,-500.0,0.00019178,2]
[424419456,1780863039000,-739.63,0.00019178,2]
[424419448,1780863039000,-500.0,0.00019178,2]
[424419455,1780863039000,-1128.89,0.00019178,2]
[424419451,1780863039000,-500.0,0.00019178,2]
[424419453,1780863039000,-500.0,0.00019178,2]
[424419471,1780863039000,-4101.88,0.00019178,2]
[424419452,1780863039000,-500.0,0.00019178,2]
[424419462,1780863039000,-508.69345333,0.00019178,2]
[424419459,1780863039000,-966.7278,0.00019178,2]
[424419463,1780863039000,-645.09,0.00019178,2]
[424419460,1780863039000,-2223.55,0.00019178,2]
[424419464,1780863039000,-500.0,0.00019178,2]
[424419461,1780863039000,-500.0,0.00019178,2]
[424419465,1780863039000,-500.0,0.00019178,2]
[424419466,1780863039000,-500.0,0.00019178,2]
[424419467,1780863039000,-1039.46,0.00019178,2]
[424419468,1780863039000,-688.18,0.00019178,2]
[424419457,1780863039000,-500.0,0.00019178,2]
[424419495,1780863039000,-500.0,0.00019178,2]
[424419484,1780863039000,-500.0,0.00019178,2]
[424419501,1780863039000,-500.0,0.00019178,2]
[424419541,1780863039000,-500.0,0.00019178,2]
[424419539,1780863039000,-426.36638891,0.00019178,2]
[424419530,1780863039000,-500.0,0.00019178,2]
[424419532,1780863039000,-500.0,0.00019178,2]
[424419531,1780863039000,-500.0,0.00019178,2]
[424419533,1780863039000,-1002.82,0.00019178,2]
[424419535,1780863039000,-500.0,0.00019178,2]
[424419536,1780863039000,-1381.1,0.00019178,2]
[424419538,1780863039000,-5972.45,0.00019178,2]
[424419537,1780863039000,-500.0,0.00019178,2]
[424419540,1780863039000,-1562.01,0.00019178,2]
[424419542,1780863039000,-1098.47,0.00019178,2]
[424419546,1780863039000,-500.0,0.00019178,2]
[424419545,1780863039000,-798.13,0.00019178,2]
[424419544,1780863039000,-500.0,0.00019178,2]
[424419548,1780863039000,-2070.21277502,0.00019178,2]
[424419543,1780863039000,-3105.65,0.00019178,2]
[424419549,1780863039000,-2886.11722498,0.00019178,2]
[424419550,1780863039000,-500.0,0.00019178,2]
[424419551,1780863039000,-500.0,0.00019178,2]
[424419552,1780863039000,-1191.31671981,0.00019178,2]
[424419513,1780863039000,-500.0,0.00019178,2]
[424419547,1780863039000,-500.0,0.00019178,2]
[424419529,1780863039000,-500.0,0.00019178,2]
[424419534,1780863039000,-500.0,0.00019178,2]
[424419520,1780863039000,-500.0,0.00019178,2]
[424419512,1780863039000,-1708.98,0.00019178,2]
[424419511,1780863039000,-500.0,0.00019178,2]
[424419508,1780863039000,-3693.53,0.00019178,2]
[424419503,1780863039000,-500.0,0.00019178,2]
[424419506,1780863039000,-5907.73,0.00019178,2]
[424419524,1780863039000,-797.0,0.00019178,2]
[424419507,1780863039000,-50091.08,0.00019178,2]
[424419502,1780863039000,-500.0,0.00019178,2]
[424419505,1780863039000,-865.3,0.00019178,2]
[424419509,1780863039000,-500.0,0.00019178,2]
[424419510,1780863039000,-500.0,0.00019178,2]
[424419514,1780863039000,-500.0,0.00019178,2]
[424419504,1780863039000,-500.0,0.00019178,2]
[424419525,1780863039000,-3192.9,0.00019178,2]
[424419522,1780863039000,-500.0,0.00019178,2]
[424419517,1780863039000,-500.0,0.00019178,2]
[424419523,1780863039000,-1066.03,0.00019178,2]
[424419526,1780863039000,-500.0,0.00019178,2]
[424419527,1780863039000,-500.0,0.00019178,2]
[424419521,1780863039000,-1162.07,0.00019178,2]
[424419515,1780863039000,-323.65097166,0.00019178,2]
[424419518,1780863039000,-4411.58,0.00019178,2]
[424419516,1780863039000,-500.0,0.00019178,2]
[424419519,1780863039000,-638.72,0.00019178,2]
[424419558,1780863040000,-500.0,0.00017598,2]
[424419563,1780863040000,-421.59363021,0.00019178,2]
[424419561,1780863040000,-796.45328019,0.00019178,2]
[424419559,1780863040000,-500.0,0.00017598,2]
[424419560,1780863040000,-500.0,0.00017598,2]
[424419562,1780863040000,-1074.82,0.00019178,2]
[424419556,1780863040000,-500.0,0.00017598,2]
[424419557,1780863040000,-500.0,0.00017598,2]
[424419568,1780863040000,-712.25,0.00019178,2]
[424419566,1780863040000,-500.0,0.00019178,2]
[424419553,1780863040000,-500.0,0.00017598,2]
[424419554,1780863040000,-344.00042199,0.00017598,2]
[424419564,1780863040000,-11757.57,0.00019178,2]
[424419555,1780863040000,-500.0,0.00017598,2]
[424419565,1780863040000,-563.34286498,0.00019178,2]
[424419567,1780863040000,-500.0,0.00019178,2]
[424419571,1780863040000,-4373.41,0.00019178,2]
[424419585,1780863040000,-8207.52053213,0.00019178,2]
[424419584,1780863040000,-500.0,0.00019178,2]
[424419583,1780863040000,-500.0,0.00019178,2]
[424419582,1780863040000,-2953.15,0.00019178,2]
[424419581,1780863040000,-559.26,0.00019178,2]
[424419580,1780863040000,-500.0,0.00019178,2]
[424419579,1780863040000,-500.0,0.00019178,2]
[424419569,1780863040000,-981.95,0.00019178,2]
[424419577,1780863040000,-500.0,0.00019178,2]
[424419575,1780863040000,-500.0,0.00019178,2]
[424419576,1780863040000,-521.35,0.00019178,2]
[424419574,1780863040000,-989.93,0.00019178,2]
[424419572,1780863040000,-500.0,0.00019178,2]
[424419573,1780863040000,-8679.89,0.00019178,2]
[424419570,1780863040000,-2627.74,0.00019178,2]
[424419578,1780863040000,-10955.78,0.00019178,2]
[424419619,1780863046000,-1633.01557051,0.00019178,2]
[424419618,1780863046000,-152.0,0.00018144,7]
[424419624,1780863747000,501.32622385,0.00024947,30]
[424419629,1780863950000,-287.96191861,0.00013865,14]
[424419631,1780863950000,-2323.22682329,0.0001485,2]
[424419630,1780863950000,-192.32884864,0.00014849,2]
[424419633,1780864031000,-1770.38850547,0.00014702,2]
[424419634,1780864042000,-927.32146615,0.00014702,2]
[424419635,1780864050000,-332.93215666,0.00014702,2]
[424419664,1780864231000,-1302.37594894,0.00014555,2]
[424419673,1780864232000,-1114.51852297,0.00014555,2]
[424419798,1780864238000,-173.80139017,0.0001852,2]
[424419797,1780864238000,-184.42718865,0.0001852,2]
[424419804,1780864238000,-3631.0,0.0001878,2]
[424419794,1780864238000,-152.0,0.00018146,7]
[424419811,1780864238000,-151.0,0.00019067,2]
[424419809,1780864238000,-205.32,0.00018904,2]
[424419808,1780864238000,-444.0,0.0001878,2]
[424419800,1780864238000,-205.32,0.0001863,2]
[424419782,1780864238000,-407.08126194,0.00014555,2]
[424419784,1780864238000,-258.12665357,0.00015,2]
[424419792,1780864238000,-5062.0074066,0.00017554,2]
[424419788,1780864238000,-160.0,0.000175,2]
[424419786,1780864238000,-3043.158018,0.00017436,2]
[424419790,1780864238000,-300.0,0.00017553,2]
[424419806,1780864238000,-186.0,0.0001878,2]
[424419780,1780864238000,-2176.02426615,0.00014555,2]
[424419796,1780864238000,-173.39757097,0.0001852,2]
[424419813,1780864238000,-188.14604286,0.00019078,2]
[424419844,1780864238000,-1001.79719545,0.00019178,2]
[424419836,1780864238000,-687.59,0.00019178,2]
[424419840,1780864238000,-500.0,0.00019178,2]
[424419838,1780864238000,-500.0,0.00019178,2]
[424419842,1780864238000,-500.0,0.00019178,2]
[424419802,1780864238000,-2207.0,0.0001878,2]
[424419832,1780864238000,-1073.33,0.00019178,2]
[424419823,1780864238000,-500.0,0.00019178,2]
[424419834,1780864238000,-500.0,0.00019178,2]
[424419819,1780864238000,-500.0,0.00019178,2]
[424419821,1780864238000,-500.0,0.00019178,2]
[424419826,1780864238000,-500.0,0.00019178,2]
[424419828,1780864238000,-500.0,0.00019178,2]
[424419825,1780864238000,-838.29,0.00019178,2]
[424419817,1780864238000,-225.8335082,0.00019095,2]
[424419815,1780864238000,-4616.2662111,0.00019078,2]
[424419830,1780864238000,-500.0,0.00019178,2]
[424420169,1780864241000,-84.79461992,0.00019178,2]
[424420168,1780864241000,-500.0,0.00019178,2]
[424420167,1780864241000,-225.96280455,0.00019178,2]
[424420404,1780864246000,-415.20538008,0.00019178,2]
[424420405,1780864246000,-1189.1524,0.00019178,2]
[424420406,1780864246000,-763.0,0.00019178,2]
[424420409,1780864246000,-500.0,0.00019178,2]
[424420410,1780864246000,-500.0,0.00019178,2]
[424420408,1780864246000,-1573.5,0.00019178,2]
[424420411,1780864246000,-261.87811646,0.00019178,2]
[424420407,1780864246000,-580.82,0.00019178,2]
[424420430,1780864248000,-500.0,0.00019178,2]
[424420431,1780864248000,-326.61768192,0.00019178,2]
[424420429,1780864248000,-500.0,0.00019178,2]
[424420428,1780864248000,-1000.0,0.00019178,2]
[424420426,1780864248000,-500.0,0.00019178,2]
[424420427,1780864248000,-546.36,0.00019178,2]
[424420424,1780864248000,-649.12,0.00019178,2]
[424420422,1780864248000,-500.0,0.00019178,2]
[424420417,1780864248000,-500.0,0.00019178,2]
[424420423,1780864248000,-736.2,0.00019178,2]
[424420433,1780864248000,-500.0,0.00019178,2]
[424420420,1780864248000,-500.0,0.00019178,2]
[424420418,1780864248000,-500.0,0.00019178,2]
[424420419,1780864248000,-500.0,0.00019178,2]
[424420416,1780864248000,-719.67188354,0.00019178,2]
[424420421,1780864248000,-500.0,0.00019178,2]
[424420425,1780864248000,-500.0,0.00019178,2]
[424420446,1780864248000,-500.0,0.00019178,2]
[424420434,1780864248000,-720.68,0.00019178,2]
[424420432,1780864248000,-500.0,0.00019178,2]
[424420450,1780864248000,-485.55525247,0.00019178,2]
[424420445,1780864248000,-642.56,0.00019178,2]
[424420443,1780864248000,-500.0,0.00019178,2]
[424420440,1780864248000,-500.0,0.00019178,2]
[424420441,1780864248000,-500.0,0.00019178,2]
[424420444,1780864248000,-500.0,0.00019178,2]
[424420442,1780864248000,-500.0,0.00019178,2]
[424420449,1780864248000,-59.53874753,0.00019178,2]
[424420448,1780864248000,-440.46125247,0.00019178,2]
[424420437,1780864248000,-509.94,0.00019178,2]
[424420447,1780864248000,-1005.44,0.00019178,2]
[424420438,1780864248000,-1586.03,0.00019178,2]
[424420435,1780864248000,-500.0,0.00019178,2]
[424420436,1780864248000,-500.0,0.00019178,2]
[424420439,1780864248000,-500.0,0.00019178,2]
[424420471,1780865157000,-372.3503575,0.0001651,2]
[424420473,1780865157000,-500.0,0.0001651,2]
[424420475,1780865157000,-500.0,0.0001651,2]
[424420474,1780865157000,-464.04231543,0.0001651,2]
[424420476,1780865157000,-457.07144069,0.0001651,2]
[424420472,1780865157000,-579.47156683,0.0001651,2]
[424420477,1780865226000,-1342.21312986,0.00016345,2]
[424420478,1780865230000,-1964.59524388,0.00016345,2]
[424420481,1780865240000,-152.22218145,0.0001651,2]
[424420480,1780865240000,-42.92855931,0.0001651,2]
[424420479,1780865240000,-1693.19162626,0.00016345,2]
[424420521,1780865432000,-317.45757502,0.00016678,2]
[424420500,1780865432000,-156.0,0.00015744,2]
[424420502,1780865432000,-308.2760078,0.00015844,2]
[424420504,1780865432000,-548.04623608,0.00015844,2]
[424420506,1780865432000,-855.46592164,0.00015844,2]
[424420517,1780865432000,-1667.20756625,0.00016345,2]
[424420519,1780865432000,-3332.79243375,0.00016345,2]
[424420527,1780865432000,-151.89833277,0.00017124,2]
[424420508,1780865432000,-500.0,0.00016344,2]
[424420510,1780865432000,-500.0,0.00016344,2]
[424420512,1780865432000,-500.0,0.00016344,2]
[424420515,1780865432000,-559.40426823,0.00016344,2]
[424420513,1780865432000,-500.0,0.00016344,2]
[424420525,1780865432000,-171.94865025,0.00016678,2]
[424420523,1780865432000,-362.44584851,0.00016678,2]
[424420666,1780865438000,-500.0,0.00017348,2]
[424420664,1780865438000,-500.0,0.00017348,2]
[424420663,1780865438000,-227.26255501,0.00017348,2]
[424420661,1780865438000,-500.0,0.00017348,2]
[424420672,1780865438000,-600.0,0.00017694,2]
[424420657,1780865438000,-153.04514937,0.00017348,2]
[424420660,1780865438000,-500.0,0.00017348,2]
[424420658,1780865438000,-45.71174022,0.00017348,2]
[424420655,1780865438000,-586.95485063,0.00017124,2]
[424420656,1780865438000,-164.0,0.00017315,3]
[424420667,1780865438000,-500.0,0.00017348,2]
[424420662,1780865438000,-500.0,0.00017348,2]
[424420665,1780865438000,-500.0,0.00017348,2]
[424420677,1780865438000,-1096.81257296,0.00018479,2]
[424420670,1780865438000,-474.77218001,0.00017555,2]
[424420669,1780865438000,-415.42565751,0.00017555,2]
[424420668,1780865438000,-271.65169776,0.000175,2]
[424420673,1780865438000,-152.0,0.00018166,7]
[424420675,1780865438000,-342.75392905,0.00018479,2]
[424420676,1780865438000,-616.95707229,0.00018479,2]
[424420678,1780865438000,-156.05781388,0.00018512,2]
[424420671,1780865438000,-741.08969974,0.00017555,2]
[424420682,1780865438000,-5074.67454769,0.00018771,2]
[424420680,1780865438000,-156.42125115,0.00018512,2]
[424420679,1780865438000,-165.98446979,0.00018512,2]
[424420681,1780865438000,-177.94,0.0001863,2]
[424420674,1780865438000,-152.0,0.00018172,7]
[424420695,1780865443000,-1412.16981293,0.00018771,2]
[424420735,1780865446000,-399.60563597,0.00019178,2]
[424420726,1780865446000,-500.0,0.00019178,2]
[424420720,1780865446000,-500.0,0.00019178,2]
[424420718,1780865446000,-500.0,0.00019178,2]
[424420723,1780865446000,-500.0,0.00019178,2]
[424420737,1780865446000,-500.0,0.00019178,2]
[424420717,1780865446000,-996.15,0.00019178,2]
[424420722,1780865446000,-500.0,0.00019178,2]
[424420721,1780865446000,-500.0,0.00019178,2]
[424420719,1780865446000,-500.0,0.00019178,2]
[424420715,1780865446000,-842.0148,0.00019178,2]
[424420711,1780865446000,-151.0,0.00018967,2]
[424420713,1780865446000,-4531.84583616,0.00019078,2]
[424420724,1780865446000,-500.0,0.00019178,2]
[424420714,1780865446000,-4000.03852159,0.00019078,2]
[424420710,1780865446000,-177.94,0.00018904,2]
[424420709,1780865446000,-159.068591,0.00018896,2]
[424420712,1780865446000,-2438.03708334,0.00019,2]
[424420708,1780865446000,-442.18460151,0.00018779,2]
[424420706,1780865446000,-4707.59042548,0.00018771,2]
[424420707,1780865446000,-751.6126911,0.00018771,2]
[424420705,1780865446000,-1469.12859326,0.00018583,2]
[424420736,1780865446000,-500.0,0.00019178,2]
[424420716,1780865446000,-1562.7636,0.00019178,2]
[424420725,1780865446000,-500.0,0.00019178,2]
[424420704,1780865446000,-3530.87140674,0.00018583,2]
[424420732,1780865446000,-500.0,0.00019178,2]
[424420752,1780865446000,-500.0,0.00019178,2]
[424420755,1780865446000,-136.433121,0.00019178,2]
[424420754,1780865446000,-500.0,0.00019178,2]
[424420753,1780865446000,-500.0,0.00019178,2]
[424420742,1780865446000,-1113.65,0.00019178,2]
[424420745,1780865446000,-1030.03,0.00019178,2]
[424420748,1780865446000,-500.0,0.00019178,2]
[424420747,1780865446000,-1904.95,0.00019178,2]
[424420744,1780865446000,-500.0,0.00019178,2]
[424420741,1780865446000,-500.0,0.00019178,2]
[424420743,1780865446000,-764.87,0.00019178,2]
[424420746,1780865446000,-500.0,0.00019178,2]
[424420751,1780865446000,-501.47,0.00019178,2]
[424420728,1780865446000,-500.0,0.00019178,2]
[424420733,1780865446000,-1000.0,0.00019178,2]
[424420740,1780865446000,-500.0,0.00019178,2]
[424420730,1780865446000,-500.0,0.00019178,2]
[424420729,1780865446000,-593.15,0.00019178,2]
[424420731,1780865446000,-500.0,0.00019178,2]
[424420739,1780865446000,-829.25,0.00019178,2]
[424420738,1780865446000,-500.0,0.00019178,2]
[424420749,1780865446000,-500.0,0.00019178,2]
[424420750,1780865446000,-682.57,0.00019178,2]
[424420734,1780865446000,-500.0,0.00019178,2]
[424420727,1780865446000,-558.73,0.00019178,2]
[424420774,1780866333000,-159.96134033,0.0001651,2]
[424420773,1780866333000,-245.58577127,0.0001651,2]
[424420775,1780866333000,-372.77365059,0.0001651,2]
[424420778,1780866427000,-1208.98904277,0.00015685,2]
[424420779,1780866427000,-513.75207477,0.00015685,2]
[424420780,1780866429000,-749.55946425,0.00015685,2]
[424420782,1780866441000,-756.99036141,0.00015685,2]
[424420979,1780866638000,-171.64226709,0.00015844,2]
[424421005,1780866638000,-150.386,0.00019028,2]
[424421008,1780866638000,-3105.6604405,0.00019036,2]
[424421013,1780866638000,-4497.60427421,0.00019078,2]
[424421004,1780866638000,-150.138,0.00019028,2]
[424421001,1780866638000,-154.22,0.00018904,2]
[424421002,1780866638000,-444.0,0.00019,2]
[424421000,1780866638000,-154.22,0.0001863,2]
[424421007,1780866638000,-3625.0,0.00019028,2]
[424420995,1780866638000,-418.04192082,0.00018265,2]
[424420994,1780866638000,-500.0,0.00018265,2]
[424420991,1780866638000,-382.0,0.00017968,2]
[424420990,1780866638000,-1531.31751811,0.00017308,2]
[424420996,1780866638000,-500.0,0.00018265,2]
[424420987,1780866638000,-306.5700737,0.00017308,2]
[424420992,1780866638000,-152.0,0.0001815,7]
[424420997,1780866638000,-500.0,0.00018265,2]
[424420989,1780866638000,-981.02423583,0.00017308,2]
[424420999,1780866638000,-507.5089409,0.00018266,2]
[424420998,1780866638000,-500.0,0.00018265,2]
[424420988,1780866638000,-551.82613265,0.00017308,2]
[424420986,1780866638000,-210.56264081,0.00017308,2]
[424420980,1780866638000,-300.0,0.00016442,2]
[424420983,1780866638000,-280.43503286,0.00016443,2]
[424420981,1780866638000,-259.94524028,0.00016443,2]
[424420985,1780866638000,-778.20721618,0.00016443,2]
[424420982,1780866638000,-405.7582735,0.00016443,2]
[424420984,1780866638000,-498.55116952,0.00016443,2]
[424420978,1780866638000,-5000.0,0.00015685,2]
[424421003,1780866638000,-186.0,0.00019,2]
[424420993,1780866638000,-500.0,0.00018265,2]
[424421006,1780866638000,-2207.0,0.00019028,2]
[424421011,1780866638000,-151.0,0.00019067,2]
[424421040,1780866638000,-348.09534004,0.00019178,2]
[424421032,1780866638000,-500.0,0.00019178,2]
[424421037,1780866638000,-1537.32,0.00019178,2]
[424421034,1780866638000,-1677.59,0.00019178,2]
[424421031,1780866638000,-500.0,0.00019178,2]
[424421033,1780866638000,-520.3883,0.00019178,2]
[424421038,1780866638000,-500.0,0.00019178,2]
[424421036,1780866638000,-500.0,0.00019178,2]
[424421028,1780866638000,-500.0,0.00019178,2]
[424421030,1780866638000,-500.0,0.00019178,2]
[424421039,1780866638000,-661.75,0.00019178,2]
[424421029,1780866638000,-500.0,0.00019178,2]
[424421022,1780866638000,-500.0,0.00019178,2]
[424421020,1780866638000,-500.0,0.00019178,2]
[424421035,1780866638000,-1054.9,0.00019178,2]
[424421023,1780866638000,-500.0,0.00019178,2]
[424421018,1780866638000,-546.63,0.00019178,2]
[424421012,1780866638000,-217.96650559,0.00019078,2]
[424421009,1780866638000,-172.342,0.00019067,2]
[424421014,1780866638000,-152.0,0.00019093,2]
[424421025,1780866638000,-1111.51,0.00019178,2]
[424421017,1780866638000,-500.0,0.00019178,2]
[424421010,1780866638000,-151.23911673,0.00019067,2]
[424421026,1780866638000,-500.0,0.00019178,2]
[424421027,1780866638000,-907.78,0.00019178,2]
[424421015,1780866638000,-193.38630002,0.00019178,2]
[424421021,1780866638000,-1656.07,0.00019178,2]
[424421019,1780866638000,-500.0,0.00019178,2]
[424421016,1780866638000,-1784.1912,0.00019178,2]
[424421024,1780866638000,-500.0,0.00019178,2]